bitfinex-derivatives/quotes_ETHF0:USTF0_20250321
["timestamp","ask_amount","ask_price","bid_price","bid_amount"]
[1742526451551,0.80738,1982.7,1982.6,0.80738]
[1742526451742,2.75445,1982.8,1982.7,0.80736]
[1742526452143,0.80736,1982.7,1982.6,42.1333]
[1742526452448,0.8074,1982.6,1982.5,1.3436]
[1742526452847,2.111,1982.6,1982.5,1.3436]
[1742526453046,2.111,1982.6,1982.5,42.1436]
[1742526453243,7.0114,1982.6,1981.9,0.80766]
[1742526453445,0.80797,1981.2,1981.0,19.74799261]
[1742526453747,3.389,1981.4,1981.1,15.79839409]
[1742526454050,3.2078,1981.5,1981.1,15.79839409]
[1742526454051,3.396,1981.5,1981.1,15.79839409]
[1742526454347,3.2078,1981.3,1981.1,0.80799]
[1742526454548,6.7178,1981.3,1980.9,40.8]
[1742526454751,1.3901,1981.2,1980.9,42.82021]
[1742526455047,4.5979,1981.2,1981.0,0.80803]
[1742526455347,4.5979,1981.2,1981.1,0.80801]
[1742526455648,0.00756315,1981.4,1981.3,0.80793]
[1742526455850,0.00756315,1981.4,1981.1,0.80801]
[1742526455851,0.00756315,1981.4,1981.2,1.3986]
[1742526456046,0.80793,1981.3,1981.2,1.3986]
[1742526456253,4.01573,1981.3,1981.2,1.3986]
[1742526456453,0.80806,1981.0,1980.9,40.8]
[1742526456656,7.54986,1981.0,1980.9,42.917]
[1742526456846,6.7418,1981.0,1980.9,42.917]
[1742526457050,3.536,1981.2,1981.1,0.80801]
[1742526457951,3.21536315,1981.4,1981.3,0.80793]
[1742526458952,4.02325315,1981.4,1981.3,0.80793]
[1742526459158,0.80793,1981.3,1981.2,2.11684]
[1742526459456,4.02328315,1981.4,1981.2,2.11684]
[1742526459748,0.80793,1981.3,1981.2,1.3089]
[1742526459955,2.20593,1981.3,1981.2,2.11687]
[1742526460259,1.398,1981.3,1981.2,2.11687]
[1742526460658,3.21536315,1981.4,1981.3,0.80793]
[1742526460856,0.00756315,1981.4,1981.3,0.80793]
[1742526461057,3.2078,1982.0,1981.7,0.80777]
[1742526461257,0.80769,1981.9,1981.8,1.3723]
[1742526461558,1.398,1981.9,1981.8,2.18003]
[1742526461860,1.398,1981.9,1981.8,42.98003]
[1742526462060,2.20569,1981.9,1981.8,42.98003]
[1742526462258,6.74936315,1982.0,1981.9,0.80769]
[1742526462451,6.74936315,1982.0,1981.9,2.19159]
[1742526462760,6.74936315,1982.0,1981.8,40.8]
[1742526462761,0.80769,1981.9,1981.8,40.8]
[1742526463055,2.18579,1981.9,1981.8,40.8]
[1742526463254,0.80773,1981.8,1981.7,0.00756315]
[1742526463454,5.39363,1981.8,1981.7,0.00756315]
[1742526465968,7.89363,1981.8,1981.7,0.00756315]
[1742526466661,5.39363,1981.8,1981.7,0.00756315]
[1742526467256,8.91863,1981.8,1981.7,0.00756315]
[1742526467664,17.11571833,1981.8,1981.7,0.00756315]
[1742526467865,8.91863,1981.8,1981.7,0.00756315]
[1742526468754,11.41863,1981.8,1981.7,0.00756315]
[1742526468949,8.91863,1981.8,1981.7,0.00756315]
[1742526469154,8.91863,1981.8,1981.7,3.15e-06]
[1742526469661,11.41863,1981.8,1981.7,3.15e-06]
[1742526471051,8.91863,1981.8,1981.7,3.15e-06]
[1742526472470,11.41863,1981.8,1981.7,3.15e-06]
[1742526472856,11.50623376,1981.8,1981.7,3.15e-06]
[1742526474062,11.41863,1981.8,1981.7,3.15e-06]
[1742526474263,11.50621668,1981.8,1981.7,3.15e-06]
[1742526474767,0.80801,1981.1,1981.0,2.097]
[1742526474964,7.53581,1981.1,1981.0,2.097]
[1742526475270,7.53581,1981.1,1981.0,42.897]
[1742526477769,7.53581,1981.1,1981.0,1.4184]
[1742526478068,7.53581,1981.1,1981.0,0.80806]
[1742526478069,6.7278,1981.1,1981.0,0.80806]
[1742526478570,7.53581,1981.1,1981.0,0.80806]
[1742526478761,4.32801,1981.1,1981.0,0.80806]
[1742526479464,4.32801,1981.1,1980.8,42.7386]
[1742526479465,0.8081,1980.9,1980.8,42.7386]
[1742526479871,4.0159,1980.9,1980.8,42.7386]
[1742526480271,0.80821,1980.7,1980.3,5.22856]
[1742526480471,7.52701,1980.7,1980.6,0.8082]
[1742526480771,0.80826,1980.6,1980.5,0.80823]
[1742526481366,0.80826,1980.6,1980.5,41.60823]
[1742526481561,0.80826,1980.6,1980.5,42.95473]
[1742526482375,6.72636315,1980.7,1980.5,42.95473]
[1742526482376,6.72636315,1980.7,1980.6,0.80822]
[1742526482877,3.21536315,1980.7,1980.6,0.80822]
[1742526483073,3.2078,1981.0,1980.6,41.60822]
[1742526483377,0.80818,1980.8,1980.7,2.15465]
[1742526484174,4.01598,1980.8,1980.7,2.15465]
[1742526484364,3.2078,1980.8,1980.7,2.15465]
[1742526484865,4.01594,1980.8,1980.7,2.15465]
[1742526485067,3.2078,1980.8,1980.7,2.15465]
[1742526486474,0.00756315,1980.9,1980.8,0.80814]
[1742526486663,0.00756315,1980.9,1980.8,1.45764]
[1742526487072,0.81566315,1980.9,1980.8,1.45764]
[1742526487272,0.00756315,1980.9,1980.8,1.45764]
[1742526489177,0.81566315,1980.9,1980.8,1.45764]
[1742526489770,0.81566315,1980.9,1980.8,0.6495]
[1742526489973,0.80814,1980.8,1980.7,1.3465]
[1742526490189,4.9064,1980.8,1980.6,0.00756315]
[1742526490481,4.01598,1980.7,1980.6,0.00756315]
[1742526490772,5.42838,1980.7,1980.6,0.00756315]
[1742526491070,7.92838,1980.7,1980.6,0.00756315]
[1742526491272,13.37615555,1980.7,1979.4,3.2078]
[1742526491478,13.37615555,1980.7,1979.2,3.2078]
[1742526491479,3.2078,1979.6,1979.2,3.2078]
[1742526491680,4.01657,1979.3,1979.2,5.0488]
[1742526492173,4.01657,1979.3,1978.8,2.0613]
[1742526492174,3.2078,1979.3,1978.8,2.0613]
[1742526492369,3.2078,1979.3,1978.9,7.27381]
[1742526492370,6.7388,1979.2,1978.9,7.27381]
[1742526492569,6.7388,1979.2,1979.1,0.80883]
[1742526492771,0.80883,1979.1,1979.0,45.8488]
[1742526492964,7.54762,1979.2,1979.0,45.8488]
[1742526493166,3.2078,1979.2,1979.1,5.85763]
[1742526493373,4.34479,1979.2,1979.1,6.3654]
[1742526493572,7.55259,1979.2,1979.1,6.3654]
[1742526494269,4.01659,1979.2,1979.1,6.3654]
[1742526494464,7.55459,1979.2,1979.1,6.3654]
[1742526494873,4.01659,1979.2,1979.1,6.3654]
[1742526495079,7.55259,1979.2,1979.1,6.3654]
[1742526495769,7.55259,1979.2,1978.8,0.6452]
[1742526495968,3.2078,1978.9,1978.2,0.80919]
[1742526496178,0.80919,1978.3,1978.2,1.46049]
[1742526496379,3.2078,1979.1,1979.0,0.80887]
[1742526496677,3.554,1979.6,1979.3,0.80875]
[1742526496979,1.3519,1979.5,1979.3,41.60875]
[1742526497179,0.81627315,1979.4,1979.3,41.60875]
[1742526497376,0.00756315,1979.4,1979.3,40.8]
[1742526497676,3.2078,1979.7,1979.3,40.8]
[1742526497677,3.551,1979.5,1979.3,40.8]
[1742526497880,0.80871,1979.4,1979.3,40.8]
[1742526498077,2.16061,1979.4,1979.3,40.8]
[1742526498977,0.80871,1979.4,1979.3,40.8]
[1742526499181,4.36071,1979.4,1979.3,42.1071]
[1742526499978,5.74321,1979.4,1979.3,42.1071]
[1742526501284,2.19121,1979.4,1979.3,42.1071]
[1742526501478,5.73521,1979.4,1979.3,42.1071]
[1742526503285,2.19121,1979.4,1979.3,42.1071]
[1742526503485,2.19121,1979.4,1979.3,42.91585]
[1742526503686,4.34571,1979.4,1979.3,42.1071]
[1742526503981,0.80871,1979.4,1979.3,42.1071]
[1742526504185,4.34371,1979.4,1979.3,42.1071]
[1742526504882,5.63621,1979.4,1979.3,42.1071]
[1742526507686,5.63621,1979.4,1979.3,40.8]
[1742526507885,5.63621,1979.4,1979.3,41.60875]
[1742526508189,5.63621,1979.4,1979.3,42.2146]
[1742526508691,5.63621,1979.4,1979.3,43.02335]
[1742526508878,0.00758246,1979.5,1979.4,0.80871]
[1742526509079,0.00758246,1979.5,1979.4,2.22331]
[1742526509592,0.80852,1979.9,1979.6,2.02151]
[1742526509882,4.9349,1979.9,1979.8,0.8085]
[1742526510083,4.33042,1980.1,1980.0,0.80846]
[1742526510277,3.522,1980.1,1979.5,3.2078]
[1742526510478,1.4129,1980.0,1979.5,4.6224]
[1742526510783,0.00758246,1979.9,1979.8,0.80855]
[1742526511288,4.8922,1980.2,1979.8,0.80855]
[1742526511289,3.53,1980.3,1979.9,2.02122]
[1742526511586,4.33837,1980.3,1980.2,0.80838]
[1742526511778,4.33827,1980.5,1980.4,0.80826]
[1742526511980,0.80832,1980.4,1980.3,0.80831]
[1742526512284,4.33829,1980.5,1980.4,0.8083]
[1742526512489,4.34587246,1980.5,1980.4,40.8]
[1742526513382,4.34587246,1980.5,1980.4,41.6083]
[1742526513790,4.34584246,1980.5,1980.4,41.6083]
[1742526514089,0.81584246,1980.5,1980.4,41.6083]
[1742526514281,2.10404246,1980.5,1980.4,41.6083]
[1742526514790,0.00758246,1980.5,1980.4,41.6083]
[1742526514988,0.81584246,1980.5,1980.4,41.6083]
[1742526515586,0.00758246,1980.5,1980.4,41.6083]
[1742526516887,4.01592,1980.9,1980.8,0.80814]
[1742526517090,0.80817,1980.8,1980.7,0.80815]
[1742526517386,2.19457,1980.8,1980.7,0.80815]
[1742526518287,0.80818,1980.7,1980.6,0.8082]
[1742526518488,0.80823,1980.7,1980.6,0.8082]
[1742526519693,2.02045,1980.7,1980.4,40.8]
[1742526519897,2.02045,1980.7,1980.3,3.8649]
[1742526519898,0.8083,1980.4,1980.3,1.46543]
[1742526520394,0.8083,1980.4,1980.3,0.6571]
[1742526520899,0.80834,1980.3,1980.2,0.00758246]
[1742526521099,4.32434,1980.3,1980.2,0.00758246]
[1742526521399,4.32434,1980.3,1980.2,0.81596246]
[1742526522803,3.516,1980.3,1980.2,0.81596246]
[1742526523699,4.31824,1980.6,1980.5,0.80826]
[1742526523908,3.51,1980.6,1980.5,0.80826]
[1742526524197,0.80822,1980.6,1980.5,0.80826]
[1742526524399,2.12882,1980.6,1980.5,0.80826]
[1742526524799,0.80834,1980.3,1980.2,0.00758246]
[1742526525096,0.80855,1979.8,1979.7,0.80856]
[1742526525301,0.80859,1979.7,1979.6,0.6807]
[1742526525493,2.12919,1979.7,1979.6,0.6807]
[1742526525899,2.12919,1979.7,1979.6,40.8]
[1742526531395,0.80863,1979.6,1979.5,0.00758246]
[1742526531598,8.95843,1979.6,1979.5,0.00758246]
[1742526531794,4.6278,1979.6,1979.5,41.61625246]
[1742526531999,8.1528,1979.6,1979.5,41.61625246]
[1742526532401,8.96143,1979.6,1979.5,40.80758246]
[1742526533402,9.37043833,1979.6,1979.5,40.80758246]
[1742526533607,9.37043833,1979.6,1979.5,0.00758246]
[1742526538003,8.96143,1979.6,1979.5,0.00758246]
[1742526538508,5.74163,1979.6,1979.5,0.00758246]
[1742526538705,6.13522537,1979.6,1979.5,0.00758246]
[1742526540208,9.34302537,1979.6,1979.5,0.00758246]
[1742526540911,11.03439537,1979.6,1978.5,3.2078]
[1742526541113,0.80908,1978.6,1978.5,4.01683]
[1742526541410,0.80908,1978.6,1978.5,3.2078]
[1742526541706,0.80908,1978.6,1978.5,44.0078]
[1742526541910,2.20198,1978.6,1978.5,44.0078]
[1742526543210,0.80908,1978.5,1978.4,0.00758246]
[1742526543411,2.20198,1978.5,1978.4,0.00758246]
[1742526544505,4.01688,1978.6,1978.5,0.80908]
[1742526544711,1.29588246,1978.7,1978.5,1.3309]
[1742526544915,4.33404,1978.6,1978.5,2.0265]
[1742526545420,4.33404,1978.6,1978.5,2.83558]
[1742526545621,0.80904,1978.6,1978.5,2.0265]
[1742526545816,4.33204,1978.6,1978.5,2.0265]
[1742526547820,5.66764,1978.6,1978.5,2.0265]
[1742526549318,0.80904,1978.6,1978.5,2.83558]
[1742526549519,4.32604,1978.6,1978.5,2.83558]
[1742526549719,0.80904,1978.6,1978.5,2.83558]
[1742526550117,3.52458246,1978.7,1978.6,0.80904]
[1742526550314,4.33357246,1978.7,1978.6,0.80904]
[1742526550710,0.00758246,1978.7,1978.6,0.80904]
[1742526551815,0.80904,1978.6,1978.5,3.2078]
[1742526552317,0.80904,1978.6,1978.5,5.36708]
[1742526552521,0.80904,1978.6,1978.5,4.558]
[1742526553017,0.80904,1978.6,1978.5,5.36708]
[1742526553218,0.00758246,1978.7,1978.6,0.80904]
[1742526553921,0.81657246,1978.7,1978.6,0.80904]
[1742526554122,0.00758246,1978.7,1978.6,0.80904]
[1742526554420,0.81657246,1978.7,1978.6,0.80904]
[1742526555326,0.00758246,1978.7,1978.6,0.80904]
[1742526556220,3.518,1979.0,1978.7,2.02243]
[1742526556423,3.518,1979.0,1978.9,0.80891]
[1742526556618,7.53465,1979.1,1979.0,0.80887]
[1742526556815,4.9078,1979.2,1979.1,0.80883]
[1742526557122,0.80878,1979.3,1979.2,0.80879]
[1742526557323,5.71551,1979.4,1979.3,0.80875]
[1742526557520,4.33329246,1979.4,1979.0,5.34506]
[1742526557727,3.52458246,1979.4,1979.2,0.6841]
[1742526557924,0.81629246,1979.4,1979.3,1.9841]
[1742526558123,0.00758246,1979.4,1979.3,1.9841]
[1742526558324,0.81629246,1979.4,1979.3,1.9841]
[1742526558519,0.00758246,1979.4,1979.3,1.9841]
[1742526559026,0.00758246,1979.4,1979.3,2.79285]
[1742526559329,0.00758246,1979.4,1979.3,43.59285]
[1742526559724,3.2078,1979.7,1979.3,48.7971]
[1742526560021,3.2078,1980.0,1979.4,5.22956]
[1742526560227,0.80859,1979.7,1979.5,1.3659]
[1742526560430,0.80857,1979.8,1979.6,0.6561]
[1742526560622,0.80857,1979.8,1979.7,1.3659]
[1742526561232,2.17397,1979.8,1979.7,1.3659]
[1742526564228,2.17397,1979.8,1979.5,0.00758246]
[1742526564229,0.80863,1979.6,1979.5,0.00758246]
[1742526564934,2.19293,1979.6,1979.5,0.00758246]
[1742526568240,7.0921,1979.6,1978.7,3.2078]
[1742526568434,0.80891,1978.9,1978.8,2.09062]
[1742526568732,2.02202,1979.2,1978.8,42.0817]
[1742526568733,3.508,1979.0,1978.8,42.0817]
[1742526568937,3.508,1979.0,1978.9,2.09061]
[1742526569134,3.508,1979.0,1978.9,2.73341]
[1742526570035,4.31687,1979.0,1978.9,2.73341]
[1742526570237,4.31687,1979.0,1978.9,1.45171]
[1742526570638,4.31687,1979.0,1978.9,2.73341]
[1742526570843,0.80887,1979.0,1978.9,2.73341]
[1742526571139,0.80887,1979.0,1978.9,2.73339]
[1742526571339,0.80887,1979.0,1978.9,1.9245]
[1742526571840,0.80887,1979.0,1978.9,2.73341]
[1742526575053,2.12456,1979.1,1979.0,0.80887]
[1742526575252,2.12456,1979.1,1979.0,2.20277]
[1742526575955,2.12456,1979.1,1979.0,1.3939]
[1742526576148,0.80887,1979.0,1978.9,1.45168]
[1742526576348,2.20877,1979.0,1978.9,2.84558]
[1742526576749,2.20877,1979.0,1978.9,2.84561]
[1742526577357,2.20877,1979.0,1978.9,0.6428]
[1742526577552,5.69477,1979.0,1978.9,1.45171]
[1742526579059,5.69477,1979.0,1978.9,0.80891]
[1742526579554,0.80891,1978.9,1978.8,40.80758246]
[1742526579756,2.10111,1978.9,1978.8,40.80758246]
[1742526579950,0.80891,1978.9,1978.8,41.61653246]
[1742526580154,2.10111,1978.9,1978.8,40.80758246]
[1742526580652,2.75911,1978.9,1978.8,40.80758246]
[1742526581058,2.10111,1978.9,1978.8,40.80758246]
[1742526581361,2.10111,1978.9,1978.8,41.61653246]
[1742526581555,1.2922,1978.9,1978.8,41.61653246]
[1742526582153,2.10111,1978.9,1978.8,41.61653246]
[1742526582854,2.10111,1978.9,1978.8,40.80758246]
[1742526583564,5.30891,1978.9,1978.8,40.80758246]
[1742526584061,2.10111,1978.9,1978.8,40.80758246]
[1742526585859,5.30891,1978.9,1978.8,40.80758246]
[1742526589657,4.5,1978.9,1978.8,41.61653246]
[1742526589860,2.10111,1978.9,1978.8,41.61653246]
[1742526590064,1.2922,1978.9,1978.8,41.61653246]
[1742526590261,2.10111,1978.9,1978.8,41.61653246]
[1742526598873,3.858,1979.2,1979.1,0.80883]
[1742526599167,0.80887,1979.1,1979.0,0.80884]
[1742526599372,0.80887,1979.1,1978.9,1.2839]
[1742526599373,4.25382,1979.2,1979.1,0.80883]
[1742526599975,4.25382,1979.2,1979.1,1.50733]
[1742526600176,5.63912,1979.2,1979.1,2.79123]
[1742526600476,5.63912,1979.2,1979.1,1.9824]
[1742526600673,2.19412,1979.2,1979.1,1.9824]
[1742526602080,2.19412,1979.2,1979.1,2.79123]
[1742526602275,0.80883,1979.1,1979.0,0.6613]
[1742526602474,0.80891,1978.9,1978.8,42.98810246]
[1742526603169,2.15191,1979.0,1978.9,0.80891]
[1742526603368,2.15191,1979.0,1978.9,2.18051]
[1742526604272,2.15191,1979.0,1978.9,1.3716]
[1742526604478,2.15191,1979.0,1978.9,2.18051]
[1742526605278,2.15191,1979.0,1978.8,40.80758246]
[1742526605279,0.80891,1978.9,1978.8,40.80758246]
[1742526605474,2.11761,1978.9,1978.8,40.80758246]
[1742526605680,5.55161,1978.9,1978.8,40.80758246]
[1742526607076,6.76509,1978.9,1978.4,3.60979]
[1742526607278,0.80908,1978.5,1978.4,3.60979]
[1742526607573,0.80907,1978.6,1978.5,0.80907]
[1742526607774,4.7533,1978.7,1978.6,0.80904]
[1742526607980,4.24199,1978.7,1978.6,0.80904]
[1742526608481,0.80904,1978.6,1978.5,2.12223246]
[1742526609172,0.80904,1978.6,1978.5,1.31318246]
[1742526610075,0.80904,1978.6,1978.5,2.12226246]
[1742526610681,0.80904,1978.6,1978.5,1.31318246]
[1742526611569,0.80904,1978.6,1978.5,2.12226246]
[1742526611771,0.80904,1978.6,1978.5,1.31318246]
[1742526612883,0.80904,1978.6,1978.5,0.00758246]
[1742526613272,0.80904,1978.6,1978.5,0.81666246]
[1742526613486,0.80904,1978.6,1978.5,2.17906246]
[1742526615188,0.80904,1978.6,1978.5,1.36998246]
[1742526615791,3.433,1978.7,1978.5,1.36998246]
[1742526615989,0.80904,1978.6,1978.5,2.17903246]
[1742526617991,0.80904,1978.6,1978.5,1.36998246]
[1742526618185,4.01684,1978.6,1978.5,0.00758246]
[1742526618389,4.70054,1978.6,1978.5,0.00758246]
[1742526618588,0.8092,1978.2,1978.1,2.6154]
[1742526618789,4.2272,1978.2,1978.1,2.6154]
[1742526619490,4.2272,1978.2,1978.1,3.42464]
[1742526619687,4.2272,1978.2,1978.1,2.6154]
[1742526620089,4.2272,1978.2,1978.1,3.42464]
[1742526621286,0.80924,1978.1,1978.0,41.61686246]
[1742526621500,0.80924,1978.1,1978.0,42.21438246]
[1742526622805,0.80924,1978.1,1978.0,43.02366246]
[1742526623003,0.80924,1978.1,1978.0,42.21438246]
[1742526623204,4.01704,1978.1,1978.0,40.80758246]
[1742526623412,4.01704,1978.1,1978.0,0.00758246]
[1742526624605,6.51704,1978.1,1978.0,0.00758246]
[1742526626001,5.38554,1978.1,1978.0,0.00758246]
[1742526626207,0.80936,1977.8,1977.7,40.8]
[1742526626402,0.80949,1977.5,1977.4,1.3905]
[1742526626601,4.21849,1977.5,1977.4,2.20003]
[1742526626804,4.21849,1977.5,1977.4,2.0926]
[1742526627003,4.21849,1977.5,1977.4,42.8926]
[1742526627414,4.21849,1977.5,1977.4,43.70213]
[1742526627616,0.80943,1977.7,1977.4,42.8926]
[1742526627815,5.60213,1977.7,1977.6,0.80941]
[1742526628116,5.6021,1977.7,1977.6,0.80941]
[1742526628414,5.6021,1977.7,1977.6,1.51801]
[1742526628613,4.7927,1977.7,1977.6,1.51801]
[1742526628914,0.81695246,1977.8,1977.7,0.8094]
[1742526629214,0.81695246,1977.8,1977.7,2.1925]
[1742526629414,2.20435246,1977.8,1977.7,2.1925]
[1742526629710,0.00758246,1977.8,1977.7,2.1925]
[1742526629909,0.00758246,1977.8,1977.7,5.4003]
[1742526630617,0.00758246,1977.8,1977.7,2.1925]
[1742526630814,0.00758246,1977.8,1977.7,5.4003]
[1742526631613,3.405,1978.2,1978.1,0.80924]
[1742526632120,2.19659,1978.3,1978.2,0.8092]
[1742526632815,0.00758246,1978.4,1978.3,0.80916]
[1742526633114,2.21140246,1978.4,1978.3,0.80916]
[1742526633819,0.80916,1978.3,1978.2,1.3572]
[1742526634116,0.80916,1978.3,1977.7,5.2313]
[1742526634117,6.82468,1978.3,1977.7,5.2313]
[1742526634311,0.80932,1978.0,1977.9,0.80928]
[1742526634912,2.20402,1978.0,1977.9,0.80928]
[1742526635308,2.20402,1978.0,1977.9,2.14178]
[1742526636111,2.20402,1978.0,1977.9,0.80928]
[1742526636517,0.80932,1977.9,1977.8,2.80172]
[1742526636718,1.3035,1977.9,1977.8,2.80172]
[1742526637215,2.11282,1977.9,1977.8,0.6599]
[1742526637422,2.11282,1977.9,1977.8,1.46926]
[1742526637906,2.11282,1977.9,1977.8,2.80176]
[1742526638914,1.3035,1977.9,1977.8,2.80176]
[1742526640016,2.11282,1977.9,1977.8,2.80176]
[1742526646225,0.8094,1977.8,1977.7,0.80937]
[1742526646416,2.9064,1977.8,1977.7,0.80937]
[1742526646725,2.211,1977.8,1977.7,0.80937]
[1742526647316,1.4016,1977.8,1977.7,0.80937]
[1742526649426,2.21096,1977.8,1977.7,0.80937]
[1742526651026,1.4016,1977.8,1977.7,0.80937]
[1742526651418,2.21096,1977.8,1977.7,0.80937]
[1742526655426,1.4016,1977.8,1977.7,0.80937]
[1742526657823,4.01707,1978.1,1978.0,0.80928]
[1742526658030,6.5788,1978.1,1978.0,0.80928]
[1742526658321,7.38804,1978.1,1978.0,0.80928]
[1742526658718,0.6506,1978.2,1978.1,0.80924]
[1742526658919,3.372,1978.2,1978.1,0.80924]
[1742526659124,1.2967,1978.2,1978.1,0.80924]
[1742526660423,1.2967,1978.2,1978.0,2.11894]
[1742526660726,0.80928,1978.0,1977.9,1.5113]
[1742526661224,6.97346,1978.1,1978.0,0.80928]
[1742526661430,5.55836,1978.1,1978.0,0.80928]
[1742526661826,0.80928,1978.0,1977.9,0.8093]
[1742526662232,0.80931,1978.0,1977.9,0.80929]
[1742526662630,0.80937,1977.9,1977.8,0.80934]
[1742526662832,4.18837,1977.9,1977.8,0.80934]
[1742526663026,0.80944,1977.6,1977.5,0.81705246]
[1742526663935,5.56524,1977.7,1977.6,0.80944]
[1742526664126,0.80944,1977.6,1977.5,0.00758246]
[1742526664627,0.80944,1977.6,1977.5,0.81707246]
[1742526665234,5.5652,1977.7,1977.6,0.80944]
[1742526665633,5.5652,1977.7,1977.6,2.17534]
[1742526665634,2.1832,1977.7,1977.6,2.17534]
[1742526665828,5.5752,1977.7,1977.6,1.3659]
[1742526666037,0.80944,1977.6,1977.5,3.50255246]
[1742526666631,0.80944,1977.6,1977.5,1.49165246]
[1742526666935,0.80944,1977.6,1977.5,0.81705246]
[1742526667136,0.80944,1977.6,1977.5,0.00758246]
[1742526667637,4.01724,1977.6,1977.5,0.00758246]
[1742526668528,4.01724,1977.6,1977.5,1.36828246]
[1742526668936,0.80944,1977.6,1977.5,1.36828246]
[1742526669327,0.80944,1977.6,1977.5,0.00758246]
[1742526670330,4.01724,1977.6,1977.5,0.00758246]
[1742526670534,0.80944,1977.6,1977.5,0.81707246]
[1742526670737,0.80944,1977.6,1977.5,2.17777246]
[1742526671129,4.20544,1977.6,1977.5,2.81897246]
[1742526671527,4.20444,1977.6,1977.5,2.81897246]
[1742526671728,0.80944,1977.6,1977.5,2.81897246]
[1742526671928,4.20444,1977.6,1977.5,2.81897246]
[1742526673030,4.20444,1977.6,1977.5,2.00948246]
[1742526673234,4.20444,1977.6,1977.5,0.00758246]
[1742526673738,4.20444,1977.6,1977.5,0.81707246]
[1742526673934,4.20444,1977.6,1977.5,2.11417246]
[1742526674841,4.20444,1977.6,1977.5,0.00758246]
[1742526675232,4.20444,1977.6,1977.5,0.81707246]
[1742526675633,4.20444,1977.6,1977.5,2.13027246]
[1742526675940,4.20444,1977.6,1977.5,0.00758246]
[1742526676140,5.55154,1977.6,1977.5,0.00758246]
[1742526676341,5.55154,1977.6,1977.5,2.13027246]
[1742526676941,1.3471,1977.6,1977.5,2.13027246]
[1742526677141,3.2078,1977.8,1977.7,0.8094]
[1742526677142,4.5549,1977.8,1977.7,0.8094]
[1742526677839,4.5549,1977.8,1977.7,1.5101]
[1742526678037,1.3471,1977.8,1977.7,1.5101]
[1742526678446,2.15646,1977.8,1977.7,2.8007]
[1742526679543,1.3471,1977.8,1977.7,2.8007]
[1742526679746,2.15646,1977.8,1977.7,0.8094]
[1742526679935,0.8094,1977.7,1977.6,4.4984]
[1742526680140,2.1743,1977.7,1977.6,0.80944]
[1742526681145,0.80944,1977.6,1977.5,3.51604246]
[1742526681445,2.10204,1977.6,1977.5,3.51604246]
[1742526681847,1.2926,1977.6,1977.5,3.51604246]
[1742526682049,2.10204,1977.6,1977.5,3.51604246]
[1742526682643,2.10204,1977.6,1977.5,0.81704246]
[1742526683242,2.10204,1977.6,1977.5,2.11104246]
[1742526684956,2.10204,1977.6,1977.5,0.00758246]
[1742526685254,2.10204,1977.6,1977.5,0.81707246]
[1742526685456,2.10204,1977.6,1977.5,0.00758246]
[1742526686154,2.10204,1977.6,1977.5,0.81707246]
[1742526686155,1.2926,1977.6,1977.5,0.81707246]
[1742526686655,1.2926,1977.6,1977.5,2.19297246]
[1742526687260,4.19426,1978.1,1978.0,0.80925]
[1742526687454,49.9658,1978.3,1977.7,2.02351]
[1742526687455,2.20702,1978.2,1978.1,0.80924]
[1742526687656,5.59402,1978.2,1978.1,0.80924]
[1742526687851,0.80926,1978.1,1978.0,0.80925]
[1742526688753,2.18526,1978.1,1978.0,0.80925]
[1742526689958,1.376,1978.1,1978.0,2.10075]
[1742526690860,3.381,1978.3,1978.2,0.8092]
[1742526691157,5.53326,1978.3,1978.2,0.8092]
[1742526691352,4.7241,1978.3,1978.2,0.8092]
[1742526691553,4.7241,1978.3,1978.2,1.4651]
[1742526691954,1.3431,1978.3,1978.2,1.4651]
[1742526692350,2.15226,1978.3,1978.2,0.6559]
[1742526692553,0.80926,1978.1,1978.0,0.80924]
[1742526692763,0.80931,1978.0,1977.9,0.80929]
[1742526692949,5.50671,1978.0,1977.9,0.80931]
[1742526693555,0.80932,1977.9,1977.8,3.48264]
[1742526693754,2.12272,1977.9,1977.8,3.48264]
[1742526694162,2.12272,1977.9,1977.8,1.47094]
[1742526694855,1.3134,1977.9,1977.8,1.47094]
[1742526695962,2.12272,1977.9,1977.8,1.47094]
[1742526699161,1.3134,1977.9,1977.8,1.47094]
[1742526699366,4.18526,1978.1,1978.0,0.80928]
[1742526699664,0.00758246,1978.4,1978.3,0.80916]
[1742526699959,4.19370246,1978.4,1978.3,0.80916]
[1742526700363,0.80916,1978.3,1978.2,2.14787]
[1742526700871,2.20836,1978.3,1978.2,3.52087]
[1742526701967,1.3992,1978.3,1978.2,3.52087]
[1742526702654,0.00758246,1978.4,1978.3,0.80916]
[1742526702861,0.00758246,1978.4,1978.3,2.16836]
[1742526703266,0.00758246,1978.4,1978.3,42.96836]
[1742526703563,0.00758246,1978.4,1978.3,46.34036]
[1742526706272,3.2078,1978.9,1978.8,0.80895]
[1742526706468,6.5758,1978.9,1978.7,0.80897]
[1742526706674,0.809,1978.8,1978.7,0.80897]
[1742526707363,4.5231,1979.1,1978.7,3.369]
[1742526707672,0.80895,1978.8,1978.7,5.48626]
[1742526707869,0.80895,1978.8,1978.7,46.28626]
[1742526708075,2.13895,1978.8,1978.7,42.91726]
[1742526708962,1.33,1978.8,1978.7,42.91726]
[1742526709370,2.13898,1978.8,1978.7,0.80899]
[1742526709975,1.33,1978.8,1978.7,41.60899]
[1742526710173,1.33,1978.8,1978.7,42.95219]
[1742526710472,0.00758246,1978.9,1978.8,0.80895]
[1742526710673,0.00758246,1978.9,1978.8,2.15215]
[1742526711275,1.31388246,1978.9,1978.8,42.95215]
[1742526715464,0.00758246,1978.9,1978.8,42.95215]
[1742526717375,0.00758246,1978.9,1978.8,46.31915]